Workbook

Sheet 1. Info
AB1: Algoma Power Inc.
AB2: Atikokan Hydro Inc.
AB3: Attawapiskat Power Corp.
AB4: Bluewater Power Distribution Corporation
AB5: Brant County Power Inc.
AB6: Brantford Power Inc.
AB7: Burlington Hydro Inc.
AB8: Cambridge and North Dumfries Hydro Inc.
AB9: Canadian Niagara Power Inc.
AB10: Centre Wellington Hydro Ltd.
AB11: Chapleau Public Utilities Corporation
AB12: Clinton Power Corporation
G13: Version | H13: 1.1 | AB13: COLLUS Power Corporation
AB14: Cooperative Hydro Embrun Inc.
C15: Utility Name | D15: Waterloo North Hydro Inc. | AB15: E.L.K. Energy Inc.
AB16: Enersource Hydro Mississauga Inc.
C17: Service Territory Name | AB17: Entegrus Powerlines Inc.
AB18: ENWIN Utilities Ltd.
C19: Assigned EB Number | D19: EB-2013-0176 | AB19: Erie Thames Powerlines Corporation
AB20: Espanola Regional Hydro Distribution Corporation
C21: Name and Title | D21: Albert P. Singh, CFO & Vice-President Administration | AB21: Essex Powerlines Corporation
AB22: Festival Hydro Inc.
C23: Phone Number | D23: 519-888-5542 | AB23: Fort Albany Power Corporation
AB24: Fort Frances Power Corporation
C25: Email Address | D25: asingh@wnhydro.com | AB25: Greater Sudbury Hydro Inc.
AB26: Grimsby Power Inc.
C27: Date | D27: 2014-05-01 | AB27: Guelph Hydro Electric Systems Inc.
AB28: Haldimand County Hydro Inc.
C29: Last COS Re-based Year | D29: 2011 | AB29: Halton Hills Hydro Inc.
AB30: Hearst Power Distribution Company Limited
AB31: Horizon Utilities Corporation
A32: Note: Drop-down lists are shaded blue; Input cells are shaded green. | AB32: Hydro 2000 Inc.
AB33: Hydro Hawkesbury Inc.
AB34: Hydro One Brampton Networks Inc.
AB35: Hydro One Networks Inc.
AB36: Hydro Ottawa Limited
AB37: Innisfil Hydro Distribution Systems Limited
AB38: Kashechewan Power Corporation
AB39: Kenora Hydro Electric Corporation Ltd.
AB40: Kingston Hydro Corporation
AB41: Kitchener-Wilmot Hydro Inc.
AB42: Lakefront Utilities Inc.
AB43: Lakeland Power Distribution Ltd.
AB44: London Hydro Inc.
AB45: Midland Power Utility Corporation
AB46: Milton Hydro Distribution inc.
AB47: Newmarket - Tay Power Distribution Ltd.
AB48: Niagara Peninsula Energy Inc.
AB49: Niagara-on-the-Lake Hydro Inc.
AB50: Norfolk Power Distribution Inc.
AB51: North Bay Hydro Distribution Limited
AB52: Northern Ontario Wires Inc.
AB53: Oakville Hydro Electricity Distribution Inc.
AB54: Orangeville Hydro Limited
AB55: Orillia Power Distribution Corporation
AB56: Oshawa PUC Networks Inc.
AB57: Ottawa River Power Corporation
AB58: Parry Sound Power Corporation
AB59: Peterborough Distribution Incorporated
AB60: PowerStream Inc.
AB61: PUC Distribution Inc.
AB62: Renfrew Hydro Inc.
AB63: Rideau St. Lawrence Distribution Inc.
AB64: Sioux Lookout Hydro Inc.
AB65: St. Thomas Energy Inc.
AB66: Thunder Bay Hydro Electricity Distribution Inc.
AB67: Tillsonburg Hydro Inc.
AB68: Toronto Hydro-Electric System Limited
AB69: Veridian Connections Inc.
AB70: Wasaga Distribution Inc.
AB71: Waterloo North Hydro Inc.
AB72: Welland Hydro-Electric System Corp.
AB73: Wellington North Power Inc.
AB74: West Coast Huron Energy Inc.
AB75: West Perth Power Inc.
AB76: Westario Power Inc.
AB77: Whitby Hydro Electric Corporation
AB78: Woodstock Hydro Services Inc.

Sheet 2. Table of Contents
C22: 1. Info
C24: 2. Table of Contents
C26: 3. Re-Based Billing Determinants and Rates
C28: 4. Re-Based Revenue from Rates
C30: 5. Z-Factor Tax Changes
C32: 6. Calculation of Tax Change Variable Rate Rider

Sheet 3. Re-Based Bill Det & Rates
A13: Enter your 2013 Base Monthly Fixed Charge and Distribution Volumetric Charge into columns labeled "Rate ReBal Base Service Charge" and "Rate ReBal Base Distribution Volumetric Rate kWh/kW" respectively.
C18: ="Last COS Re-based Year was in " & '1. Info'!D29 -> Last COS Re-based Year was in 2011
B20: Control | C20: Rate Group | D20: Rate Class | E20: Fixed Metric | F20: Vol Metric | G20: OEB Audit | I20: Re-based Billed Customers or Connections | J20: Re-based Billed kWh | K20: Re-based Billed kW | M20: Rate ReBal Base Service Charge | N20: Rate ReBal Base Distribution Volumetric Rate kWh | O20: Rate ReBal Base Distribution Volumetric Rate kW | AA20: Residential | AB20: Threshold | AD20: Less Than 50 | AE20: Threshold | AG20: Greater Than 50 | AH20: Threshold | AJ20: Large Use | AK20: Threshold | AM20: USL | AN20: Threshold | AP20: Sentinel | AQ20: Threshold | AS20: Street | AT20: Threshold | AV20: EMB | AY20: SB
I21: A | J21: B | K21: C | M21: D | N21: E | O21: F | AA21: Residential | AB21: 250 / 2,250 | AD21: General Service Less Than 50 kW | AE21: 2,000 / 20,000 | AG21: General Service 50 to 499 kW | AH21: 50 / 500 | AJ21: Large Use | AK21: 5,000 / 100,000 | AM21: Unmetered Scattered Load | AN21: 500 / 20,000 | AP21: Sentinel Lighting | AQ21: 0.2 / 1.0 | AS21: Street Lighting | AT21: 0.2 / 1.0 | AV21: Embedded Distributor | AY21: Stand-By
B22: 1 | C22: RES | D22: Residential | E22: Customer | F22: kWh | I22: 46238 | J22: 393848053.7 | M22: 14.79 | N22: 0.0187 | AA22: Residential Regular | AB22: 250 / 2,250 | AD22: General Service Less Than 50 kW – Single Phase energy-billed [G1] | AE22: 2,000 / 20,000 | AG22: General Service 50 to 699 kW | AH22: 50 / 700 | AJ22: Large Use - Regular | AK22: 5,000 / 100,000 | AV22: Low Voltage Wheeling Charge Rate | AY22: Standby Power
B23: 2 | C23: GSLT50 | D23: General Service Less Than 50 kW | E23: Customer | F23: kWh | I23: 5427.547578 | J23: 179687810.2 | M23: 31.11 | N23: 0.0139 | AA23: Residential Urban | AB23: 250 / 2,250 | AD23: General Service Less Than 50 kW – Three Phase energy-billed [G3] | AE23: 2,000 / 20,000 | AG23: General Service 50 to 999 kW | AH23: 50 / 1,000 | AJ23: Large Use > 5000 kW | AK23: 5,000 / 100,000 | AY23: Standby Power – INTERIM APPROVAL
B24: 3 | C24: GSGT50 | D24: General Service 50 to 4,999 kW | E24: Customer | F24: kW | I24: 666.6431465 | J24: 705732689 | K24: 1581206.519 | M24: 116.22 | O24: 4.6141 | AA24: Residential Urban Year-Round | AB24: 250 / 2,250 | AD24: General Service Less Than 50 kW – Transmission Class energy-billed [T] | AE24: 2,000 / 20,000 | AG24: General Service 50 to 999 kW - Interval Metered | AH24: 50 / 1,000 | AJ24: Large Use - 3TS | AK24: 5,000 / 100,000 | AY24: Standby Power - APPROVED ON AN INTERIM BASIS
B25: 4 | C25: LU | D25: Large Use | E25: Customer | F25: kW | I25: 1 | J25: 79638262.48 | K25: 153851.8077 | M25: 6791.21 | O25: 3.2492 | AA25: Residential Suburban | AB25: 250 / 2,250 | AD25: General Service Less Than 50 kW – Urban energy-billed [UG] | AE25: 2,000 / 20,000 | AG25: General Service 50 to 1,000 kW | AH25: 50 / 1,000 | AJ25: Large Use - Ford Annex | AK25: 5,000 / 100,000 | AY25: Standby - General Service 50 - 1,000 kW
B26: 5 | C26: USL | D26: Unmetered Scattered Load | E26: Connection | F26: kWh | I26: 547.0223936 | J26: 1648665.919 | M26: 15.55 | N26: 0.0193 | AA26: Residential Suburban Seasonal | AB26: 250 / 2,250 | AD26: Westport Sewage Treatment Plant | AE26: 2,000 / 20,000 | AG26: General Service 50 to 1,000 kW - Interval Meters | AH26: 50 / 1,500 | AY26: Standby Power General Service 50 to 1,499 kW
B27: 6 | C27: SL | D27: Street Lighting | E27: Connection | F27: kW | I27: 13259.20557 | J27: 7792005.668 | K27: 21835.28338 | M27: 0.33 | O27: 8.4535 | AA27: Residential Suburban Year Round | AB27: 250 / 2,250 | AD27: Farms – Single Phase energy-billed [F1] | AE27: 2,000 / 20,000 | AG27: General Service 50 to 1,000 kW - Non Interval Meters | AH27: 50 / 2,500 | AY27: Standby - General Service 1,000 - 5,000 kW
B28: 7 | C28: EMB | D28: Embedded Distributor | E28: Connection | F28: kW | I28: 1 | J28: 28618000 | K28: 71600 | O28: 0.0122 | AA28: Residential - Time of Use | AB28: 250 / 2,250 | AD28: Small Commercial and USL - per meter | AE28: 2,000 / 20,000 | AG28: General Service 50 to 1,499 kW | AH28: 50 / 3,000 | AY28: Standby Power General Service 1,500 to 4,999 kW
B29: 8 | C29: NA | D29: Rate Class 8 | E29: NA | F29: NA | AA29: Residential - Hensall | AB29: 250 / 2,250 | AD29: Small Commercial and USL - per connection | AE29: 2,000 / 20,000 | AG29: General Service 50 to 1,499 kW - Interval Metered | AH29: 50 / 3,000 | AY29: Standby - Large Use
B30: 9 | C30: NA | D30: Rate Class 9 | E30: NA | F30: NA | AA30: Residential – High Density [R1] | AB30: 250 / 2,250 | AG30: General Service 50 to 2,499 kW | AH30: 50 / 5,000 | AY30: Standby Power General Service Large Use
B31: 10 | C31: NA | D31: Rate Class 10 | E31: NA | F31: NA | AA31: Residential – Normal Density [R2] | AB31: 250 / 2,250 | AG31: General Service 50 to 2,999 kW | AH31: 50 / 5,000 | AY31: Standby Distribution Service
B32: 11 | C32: NA | D32: Rate Class 11 | E32: NA | F32: NA | AA32: Seasonal Residential – High Density [R3] | AB32: 250 / 2,250 | AG32: General Service 50 to 2,999 kW - Time of Use | AH32: 50 / 5,000
B33: 12 | C33: NA | D33: Rate Class 12 | E33: NA | F33: NA | AA33: Seasonal Residential – Normal Density [R4] | AB33: 250 / 2,250 | AG33: General Service 50 to 4,999 kW | AH33: 50 / 5,000
B34: 13 | C34: NA | D34: Rate Class 13 | E34: NA | F34: NA | AA34: Residential – Urban [UR] | AB34: 250 / 2,250 | AG34: General Service 50 to 4,999 kW – Interval Metered | AH34: 50 / 5,000
B35: 14 | C35: NA | D35: Rate Class 14 | E35: NA | F35: NA | AG35: General Service 50 to 4,999 kW - Time of Use | AH35: 50 / 5,000
B36: 15 | C36: NA | D36: Rate Class 15 | E36: NA | F36: NA | AG36: General Service 50 to 4,999 kW (CoGeneration) | AH36: 500 / 5,000
B37: 16 | C37: NA | D37: Rate Class 16 | E37: NA | F37: NA | AG37: General Service 50 to 4,999 kW (formerly Time of Use) | AH37: 700 / 5,000
B38: 17 | C38: NA | D38: Rate Class 17 | E38: NA | F38: NA | AG38: General Service 500 to 4,999 kW | AH38: 1,000 / 3,000
B39: 18 | C39: NA | D39: Rate Class 18 | E39: NA | F39: NA | AG39: General Service 700 to 4,999 kW | AH39: 1,000 / 5,000
B40: 19 | C40: NA | D40: Rate Class 19 | E40: NA | F40: NA | AG40: General Service 1,000 to 2,999 kW | AH40: 1,500 / 5,000
B41: 20 | C41: NA | D41: Rate Class 20 | E41: NA | F41: NA | AG41: General Service 1,000 to 4,999 kW | AH41: 2,500 / 5,000
B42: 21 | C42: NA | D42: Rate Class 21 | E42: NA | F42: NA | AG42: General Service 1,000 to 4,999 kW - Interval Meters | AH42: 3,000 / 5,000
B43: 22 | C43: NA | D43: Rate Class 22 | E43: NA | F43: NA | AG43: General Service 1,000 To 4,999 kW (co-generation) | AH43: 3,000 / 5,000
B44: 23 | C44: NA | D44: Rate Class 23 | E44: NA | F44: NA | AG44: General Service Greater Than 1,000 kW | AH44: 50 / 5,000
B45: 24 | C45: NA | D45: Rate Class 24 | E45: NA | F45: NA | AG45: General Service Intermediate Rate Class 1,000 To 4,999 kW (formerly Large Use Customers) | AH45: 50 / 5,000
B46: 25 | C46: NA | D46: Rate Class 25 | E46: NA | F46: NA | AG46: General Service Intermediate Rate Class 1,000 To 4,999 kW (formerly General Service > 50 kW Customers) | AH46: 50 / 5,000
AG47: General Service 1,500 to 4,999 kW
AG48: General Service Equal To Or Greater Than 1,500 kW
AG49: General Service Equal To Or Greater Than 1,500 kW - Interval Metered
AG50: General Service Intermediate 1,000 To 4,999 kW
AG51: General Service 2,500 to 4,999 kW
AG52: General Service 3,000 to 4,999 kW
AG53: General Service 3,000 to 4,999 kW - Interval Metered
AG54: General Service 3,000 to 4,999 kW - Intermediate Use
AG55: General Service 3,000 to 4,999 kW - Time of Use
AG56: Intermediate With Self Generation
AG57: General Service - Commercial
AG58: General Service - Institutional
AG59: Farms – Three Phase energy-billed [F3]

Sheet 4. Re-Based Rev From Rates
A14: Calculating Re-Based Revenue from rates. No input required.
C18: ='3. Re-Based Bill Det & Rates'!C18 -> Last COS Re-based Year was in 2011
C20: Rate Class | E20: Re-based Billed Customers or Connections | F20: Re-based Billed kWh | G20: Re-based Billed kW | I20: Rate ReBal Base Service Charge | J20: Rate ReBal Base Distribution Volumetric Rate kWh | K20: Rate ReBal Base Distribution Volumetric Rate kW | M20: Service Charge Revenue | N20: Distribution Volumetric Rate Revenue kWh | O20: Distribution Volumetric Rate Revenue kW | P20: Revenue Requirement from Rates | R20: Service Charge % Revenue | S20: Distribution Volumetric Rate % Revenue kWh | T20: Distribution Volumetric Rate % Revenue kW | U20: Total % Revenue
E21: A | F21: B | G21: C | I21: D | J21: E | K21: F | M21: G = A * D *12 | N21: H = B * E | O21: I = C * F | P21: J = G + H + I | R21: K = G / J | S21: L = H / J | T21: M = I / J | U21: N = J / R
C22: ='3. Re-Based Bill Det & Rates'!D22 -> Residential | E22: ='3. Re-Based Bill Det & Rates'!I22 -> 46238 | F22: ='3. Re-Based Bill Det & Rates'!J22 -> 393848053.7 | G22: ='3. Re-Based Bill Det & Rates'!K22 -> 0 | I22: ='3. Re-Based Bill Det & Rates'!M22 -> 14.79 | J22: ='3. Re-Based Bill Det & Rates'!N22 -> 0.0187 | K22: ='3. Re-Based Bill Det & Rates'!O22 -> 0 | M22: =IF(ISERROR(E22*I22*12),0,E22*I22*12) -> 8206320.24 | N22: =IF(ISERROR(F22*J22),0,F22*J22) -> 7364958.604 | O22: =IF(ISERROR(G22*K22),0,G22*K22) -> 0 | P22: =SUM(M22:O22) -> 15571278.84 | R22: =IF(ISERROR(M22/P22),"",M22/P22) -> 0.5270164591 | S22: =IF(ISERROR(N22/P22),"",N22/P22) -> 0.4729835409 | T22: =IF(ISERROR(O22/P22),"",O22/P22) -> 0 | U22: =IF(ISERROR(P22/P$47),"",P22/P$47) -> 0.5319154855
C23: ='3. Re-Based Bill Det & Rates'!D23 -> General Service Less Than 50 kW | E23: ='3. Re-Based Bill Det & Rates'!I23 -> 5427.547578 | F23: ='3. Re-Based Bill Det & Rates'!J23 -> 179687810.2 | G23: ='3. Re-Based Bill Det & Rates'!K23 -> 0 | I23: ='3. Re-Based Bill Det & Rates'!M23 -> 31.11 | J23: ='3. Re-Based Bill Det & Rates'!N23 -> 0.0139 | K23: ='3. Re-Based Bill Det & Rates'!O23 -> 0 | M23: =IF(ISERROR(E23*I23*12),0,E23*I23*12) -> 2026212.062 | N23: =IF(ISERROR(F23*J23),0,F23*J23) -> 2497660.562 | O23: =IF(ISERROR(G23*K23),0,G23*K23) -> 0 | P23: =SUM(M23:O23) -> 4523872.624 | R23: =IF(ISERROR(M23/P23),"",M23/P23) -> 0.447893261 | S23: =IF(ISERROR(N23/P23),"",N23/P23) -> 0.552106739 | T23: =IF(ISERROR(O23/P23),"",O23/P23) -> 0 | U23: =IF(ISERROR(P23/P$47),"",P23/P$47) -> 0.1545356632
C24: ='3. Re-Based Bill Det & Rates'!D24 -> General Service 50 to 4,999 kW | E24: ='3. Re-Based Bill Det & Rates'!I24 -> 666.6431465 | F24: ='3. Re-Based Bill Det & Rates'!J24 -> 705732689 | G24: ='3. Re-Based Bill Det & Rates'!K24 -> 1581206.519 | I24: ='3. Re-Based Bill Det & Rates'!M24 -> 116.22 | J24: ='3. Re-Based Bill Det & Rates'!N24 -> 0 | K24: ='3. Re-Based Bill Det & Rates'!O24 -> 4.6141 | M24: 929727.1978 | N24: 0 | O24: 7295845.001 | P24: 8225572.199 | R24: 0.1130288782 | S24: 0 | T24: 0.8869711218 | U24: 0.2809858634
C25: ='3. Re-Based Bill Det & Rates'!D25 -> Large Use | E25: ='3. Re-Based Bill Det & Rates'!I25 -> 1 | F25: ='3. Re-Based Bill Det & Rates'!J25 -> 79638262.48 | G25: ='3. Re-Based Bill Det & Rates'!K25 -> 153851.8077 | I25: ='3. Re-Based Bill Det & Rates'!M25 -> 6791.21 | J25: ='3. Re-Based Bill Det & Rates'!N25 -> 0 | K25: ='3. Re-Based Bill Det & Rates'!O25 -> 3.2492 | M25: 81494.52 | N25: 0 | O25: 499895.2935 | P25: 581389.8135 | R25: 0.140171909 | S25: 0 | T25: 0.859828091 | U25: 0.01986029844
C26: ='3. Re-Based Bill Det & Rates'!D26 -> Unmetered Scattered Load | E26: ='3. Re-Based Bill Det & Rates'!I26 -> 547.0223936 | F26: ='3. Re-Based Bill Det & Rates'!J26 -> 1648665.919 | G26: ='3. Re-Based Bill Det & Rates'!K26 -> 0 | I26: ='3. Re-Based Bill Det & Rates'!M26 -> 15.55 | J26: ='3. Re-Based Bill Det & Rates'!N26 -> 0.0193 | K26: ='3. Re-Based Bill Det & Rates'!O26 -> 0 | M26: 102074.3786 | N26: 31819.25223 | O26: 0 | P26: 133893.6309 | R26: 0.7623542507 | S26: 0.2376457493 | T26: 0 | U26: 0.004573811592
C27: ='3. Re-Based Bill Det & Rates'!D27 -> Street Lighting | E27: ='3. Re-Based Bill Det & Rates'!I27 -> 13259.20557 | F27: ='3. Re-Based Bill Det & Rates'!J27 -> 7792005.668 | G27: ='3. Re-Based Bill Det & Rates'!K27 -> 21835.28338 | I27: ='3. Re-Based Bill Det & Rates'!M27 -> 0.33 | J27: ='3. Re-Based Bill Det & Rates'!N27 -> 0 | K27: ='3. Re-Based Bill Det & Rates'!O27 -> 8.4535 | M27: 52506.45404 | N27: 0 | O27: 184584.5681 | P27: 237091.0221 | R27: 0.2214611653 | S27: 0 | T27: 0.7785388347 | U27: 0.008099038455
C28: ='3. Re-Based Bill Det & Rates'!D28 -> Embedded Distributor | E28: ='3. Re-Based Bill Det & Rates'!I28 -> 1 | F28: ='3. Re-Based Bill Det & Rates'!J28 -> 28618000 | G28: ='3. Re-Based Bill Det & Rates'!K28 -> 71600 | I28: ='3. Re-Based Bill Det & Rates'!M28 -> 0 | J28: ='3. Re-Based Bill Det & Rates'!N28 -> 0 | K28: ='3. Re-Based Bill Det & Rates'!O28 -> 0.0122 | M28: 0 | N28: 0 | O28: 873.52 | P28: 873.52 | R28: 0 | S28: 0 | T28: 1 | U28: 2.983947687e-05
C29: ='3. Re-Based Bill Det & Rates'!D29 -> Rate Class 8 | M29: 0 | N29: 0 | O29: 0 | P29: 0 | U29: 0
C30: ='3. Re-Based Bill Det & Rates'!D30 -> Rate Class 9 | M30: 0 | N30: 0 | O30: 0 | P30: 0 | U30: 0
C31: ='3. Re-Based Bill Det & Rates'!D31 -> Rate Class 10 | M31: 0 | N31: 0 | O31: 0 | P31: 0 | U31: 0
C32: ='3. Re-Based Bill Det & Rates'!D32 -> Rate Class 11 | M32: 0 | N32: 0 | O32: 0 | P32: 0 | U32: 0
C33: ='3. Re-Based Bill Det & Rates'!D33 -> Rate Class 12 | M33: 0 | N33: 0 | O33: 0 | P33: 0 | U33: 0
C34: ='3. Re-Based Bill Det & Rates'!D34 -> Rate Class 13 | M34: 0 | N34: 0 | O34: 0 | P34: 0 | U34: 0
C35: ='3. Re-Based Bill Det & Rates'!D35 -> Rate Class 14 | M35: 0 | N35: 0 | O35: 0 | P35: 0 | U35: 0
C36: ='3. Re-Based Bill Det & Rates'!D36 -> Rate Class 15 | M36: 0 | N36: 0 | O36: 0 | P36: 0 | U36: 0
C37: ='3. Re-Based Bill Det & Rates'!D37 -> Rate Class 16 | M37: 0 | N37: 0 | O37: 0 | P37: 0 | U37: 0
C38: ='3. Re-Based Bill Det & Rates'!D38 -> Rate Class 17 | M38: 0 | N38: 0 | O38: 0 | P38: 0 | U38: 0
C39: ='3. Re-Based Bill Det & Rates'!D39 -> Rate Class 18 | M39: 0 | N39: 0 | O39: 0 | P39: 0 | U39: 0
C40: ='3. Re-Based Bill Det & Rates'!D40 -> Rate Class 19 | M40: 0 | N40: 0 | O40: 0 | P40: 0 | U40: 0
C41: ='3. Re-Based Bill Det & Rates'!D41 -> Rate Class 20 | M41: 0 | N41: 0 | O41: 0 | P41: 0 | U41: 0
C42: ='3. Re-Based Bill Det & Rates'!D42 -> Rate Class 21 | M42: 0 | N42: 0 | O42: 0 | P42: 0 | U42: 0
C43: ='3. Re-Based Bill Det & Rates'!D43 -> Rate Class 22 | M43: 0 | N43: 0 | O43: 0 | P43: 0 | U43: 0
C44: ='3. Re-Based Bill Det & Rates'!D44 -> Rate Class 23 | M44: 0 | N44: 0 | O44: 0 | P44: 0 | U44: 0
C45: ='3. Re-Based Bill Det & Rates'!D45 -> Rate Class 24 | M45: 0 | N45: 0 | O45: 0 | P45: 0 | U45: 0
C46: ='3. Re-Based Bill Det & Rates'!D46 -> Rate Class 25 | M46: 0 | N46: 0 | O46: 0 | P46: 0 | U46: 0
M47: =SUM(M22:M46) -> 11398334.85 | N47: =SUM(N22:N46) -> 9894438.418 | O47: =SUM(O22:O46) -> 7981198.382 | P47: =SUM(P22:P46) -> 29273971.65 | U47: =SUM(U22:U46) -> 1
M48: O | N48: P | O48: Q | P48: R

Sheet 5. Z-Factor Tax Changes
A10: This worksheet calculates the tax sharing amount. Step 1: Press the Update Button (this will clear all input cells and reveal your latest cost of service re-basing year). Step 2: In the green input cells below, please enter the information related to the last Cost of Service Filing.
C18: Summary - Sharing of Tax Change Forecast Amounts
C20: ="For the " & '1. Info'!D27 & " year, enter any Tax Credits from the Cost of Service Tax Calculation (Positive #)" -> For the 41760 year, enter any Tax Credits from the Cost of Service Tax Calculation (Positive #) | K20: 136997
C23: 1. Tax Related Amounts Forecast from Capital Tax Rate Changes | E23: 2008 | G23: 2009 | I23: 2010 | K23: 2011 | M23: 2012 | O23: 2013 | Q23: 2014
C25: Taxable Capital | Q25: =K25 -> 0
C27: Deduction from taxable capital up to $15,000,000 | Q27: =K27 -> 0
C29: Net Taxable Capital | K29: =K25-K27 -> 0 | Q29: =Q25-Q27 -> 0
C31: Rate | K31: 0 | Q31: 0
C33: Ontario Capital Tax (Deductible, not grossed-up) | K33: =(IF(K29>0,K29*K31,0))*181/365 -> 0 | Q33: =IF(Q29>0, Q29*Q31, 0) -> 0
C35: 2. Tax Related Amounts Forecast from lncome Tax Rate Changes | E35: 2008 | G35: 2009 | I35: 2010 | K35: 2011 | M35: 2012 | O35: 2013 | Q35: 2014
C36: Regulatory Taxable Income | K36: 3183169.704 | Q36: =K36 -> 3183169.704
C38: Corporate Tax Rate | K38: 0.2412016895 | Q38: =fedinctax2014(Q36) + OntIncTax2014(Q36) -> 0.2540046704
C40: Tax Impact | K40: 767785.9104 | Q40: =Q36*Q38-K20 -> 671542.9715
C42: Grossed-up Tax Amount | K42: 1011844.518 | Q42: =Q40/(1-Q38) -> 900197.2866
C45: Tax Related Amounts Forecast from Capital Tax Rate Changes | K45: =K33 -> 0 | Q45: =Q33 -> 0
C47: Tax Related Amounts Forecast from lncome Tax Rate Changes | K47: =K42 -> 1011844.518 | Q47: =Q42 -> 900197.2866
C49: Total Tax Related Amounts | K49: =K45+K47 -> 1011844.518 | Q49: =Q45+Q47 -> 900197.2866
C51: Incremental Tax Savings | Q51: =Q49-K49 -> -111647.2309
C53: Sharing of Tax Savings (50%) | Q53: =Q51/2 -> -55823.61546

Sheet 6. Calc Tax Chg RRider Var
A14: This worksheet calculates a tax change volumetric rate rider. No input required. The outputs in column Q and S are to be entered into Sheet 11 "Proposed Rates" of the 2014 IRM Rate Generator Model. Rate description should be entered as "Rate Rider for Tax Change".
B20: Control | C20: Rate Class | D20: Fixed Metric | E20: Vol Metric | G20: Total Revenue $ by Rate Class | I20: Total Revenue % by Rate Class | K20: Total Z-Factor Tax Change$ by Rate Class | M20: Billed kWh | O20: Billed kW | Q20: Distribution Volumetric Rate kWh Rate Rider | S20: Distribution Volumetric Rate kW Rate Rider
G21: A | I21: B = A / $H | K21: C = $I * B | M21: D | O21: E | Q21: F = C / D | S21: G = C / E
B22: 1 | C22: ='3. Re-Based Bill Det & Rates'!D22 -> Residential | D22: ='3. Re-Based Bill Det & Rates'!E22 -> Customer | E22: ='3. Re-Based Bill Det & Rates'!F22 -> kWh | G22: ='4. Re-Based Rev From Rates'!P22 -> 15571278.84 | I22: =IF(ISERROR(G22/$G$47),0,G22/$G$47) -> 0.5319154855 | K22: =IF(ISERROR(I22*$K$47),0,I22*$K$47) -> -29693.44552 | M22: ='3. Re-Based Bill Det & Rates'!J22 -> 393848053.7 | O22: ='3. Re-Based Bill Det & Rates'!K22 -> 0 | Q22: =IF($E22="kWh",IF(ISERROR($K22/$M22),"",ROUND($K22/$M22,4)),"") -> -0.0001 | S22: =IF($E22="kW",IF(ISERROR($K22/$O22),"",ROUND($K22/$O22,4)),"") -> 
B23: 2 | C23: ='3. Re-Based Bill Det & Rates'!D23 -> General Service Less Than 50 kW | D23: ='3. Re-Based Bill Det & Rates'!E23 -> Customer | E23: ='3. Re-Based Bill Det & Rates'!F23 -> kWh | G23: ='4. Re-Based Rev From Rates'!P23 -> 4523872.624 | I23: 0.1545356632 | K23: -8626.739438 | M23: ='3. Re-Based Bill Det & Rates'!J23 -> 179687810.2 | O23: ='3. Re-Based Bill Det & Rates'!K23 -> 0 | Q23: =IF($E23="kWh",IF(ISERROR($K23/$M23),"",ROUND($K23/$M23,4)),"") -> 0 | S23: =IF($E23="kW",IF(ISERROR($K23/$O23),"",ROUND($K23/$O23,4)),"") -> 
B24: 3 | C24: ='3. Re-Based Bill Det & Rates'!D24 -> General Service 50 to 4,999 kW | D24: ='3. Re-Based Bill Det & Rates'!E24 -> Customer | E24: ='3. Re-Based Bill Det & Rates'!F24 -> kW | G24: ='4. Re-Based Rev From Rates'!P24 -> 8225572.199 | I24: 0.2809858634 | K24: -15685.64679 | M24: ='3. Re-Based Bill Det & Rates'!J24 -> 705732689 | O24: ='3. Re-Based Bill Det & Rates'!K24 -> 1581206.519 | S24: -0.0099
B25: 4 | C25: ='3. Re-Based Bill Det & Rates'!D25 -> Large Use | D25: ='3. Re-Based Bill Det & Rates'!E25 -> Customer | E25: ='3. Re-Based Bill Det & Rates'!F25 -> kW | G25: ='4. Re-Based Rev From Rates'!P25 -> 581389.8135 | I25: 0.01986029844 | K25: -1108.673663 | M25: ='3. Re-Based Bill Det & Rates'!J25 -> 79638262.48 | O25: ='3. Re-Based Bill Det & Rates'!K25 -> 153851.8077 | S25: -0.0072
B26: 5 | C26: ='3. Re-Based Bill Det & Rates'!D26 -> Unmetered Scattered Load | D26: ='3. Re-Based Bill Det & Rates'!E26 -> Connection | E26: ='3. Re-Based Bill Det & Rates'!F26 -> kWh | G26: ='4. Re-Based Rev From Rates'!P26 -> 133893.6309 | I26: 0.004573811592 | K26: -255.3266995 | M26: ='3. Re-Based Bill Det & Rates'!J26 -> 1648665.919 | O26: ='3. Re-Based Bill Det & Rates'!K26 -> 0 | Q26: -0.0002
B27: 6 | C27: ='3. Re-Based Bill Det & Rates'!D27 -> Street Lighting | D27: ='3. Re-Based Bill Det & Rates'!E27 -> Connection | E27: ='3. Re-Based Bill Det & Rates'!F27 -> kW | G27: ='4. Re-Based Rev From Rates'!P27 -> 237091.0221 | I27: 0.008099038455 | K27: -452.1176083 | M27: ='3. Re-Based Bill Det & Rates'!J27 -> 7792005.668 | O27: ='3. Re-Based Bill Det & Rates'!K27 -> 21835.28338 | S27: -0.0207
B28: 7 | C28: ='3. Re-Based Bill Det & Rates'!D28 -> Embedded Distributor | D28: ='3. Re-Based Bill Det & Rates'!E28 -> Connection | E28: ='3. Re-Based Bill Det & Rates'!F28 -> kW | G28: ='4. Re-Based Rev From Rates'!P28 -> 873.52 | I28: 2.983947687e-05 | K28: -1.665747482 | M28: ='3. Re-Based Bill Det & Rates'!J28 -> 28618000 | O28: ='3. Re-Based Bill Det & Rates'!K28 -> 71600 | S28: 0
B29: 8 | C29: ='3. Re-Based Bill Det & Rates'!D29 -> Rate Class 8 | D29: ='3. Re-Based Bill Det & Rates'!E29 -> NA | E29: ='3. Re-Based Bill Det & Rates'!F29 -> NA | G29: ='4. Re-Based Rev From Rates'!P29 -> 0 | I29: 0 | K29: 0 | M29: ='3. Re-Based Bill Det & Rates'!J29 -> 0 | O29: ='3. Re-Based Bill Det & Rates'!K29 -> 0
B30: 9 | C30: ='3. Re-Based Bill Det & Rates'!D30 -> Rate Class 9 | D30: ='3. Re-Based Bill Det & Rates'!E30 -> NA | E30: ='3. Re-Based Bill Det & Rates'!F30 -> NA | G30: ='4. Re-Based Rev From Rates'!P30 -> 0 | I30: 0 | K30: 0 | M30: ='3. Re-Based Bill Det & Rates'!J30 -> 0 | O30: ='3. Re-Based Bill Det & Rates'!K30 -> 0
B31: 10 | C31: ='3. Re-Based Bill Det & Rates'!D31 -> Rate Class 10 | D31: ='3. Re-Based Bill Det & Rates'!E31 -> NA | E31: ='3. Re-Based Bill Det & Rates'!F31 -> NA | G31: ='4. Re-Based Rev From Rates'!P31 -> 0 | I31: 0 | K31: 0 | M31: ='3. Re-Based Bill Det & Rates'!J31 -> 0 | O31: ='3. Re-Based Bill Det & Rates'!K31 -> 0
B32: 11 | C32: ='3. Re-Based Bill Det & Rates'!D32 -> Rate Class 11 | D32: ='3. Re-Based Bill Det & Rates'!E32 -> NA | E32: ='3. Re-Based Bill Det & Rates'!F32 -> NA | G32: ='4. Re-Based Rev From Rates'!P32 -> 0 | I32: 0 | K32: 0 | M32: ='3. Re-Based Bill Det & Rates'!J32 -> 0 | O32: ='3. Re-Based Bill Det & Rates'!K32 -> 0
B33: 12 | C33: ='3. Re-Based Bill Det & Rates'!D33 -> Rate Class 12 | D33: ='3. Re-Based Bill Det & Rates'!E33 -> NA | E33: ='3. Re-Based Bill Det & Rates'!F33 -> NA | G33: ='4. Re-Based Rev From Rates'!P33 -> 0 | I33: 0 | K33: 0 | M33: ='3. Re-Based Bill Det & Rates'!J33 -> 0 | O33: ='3. Re-Based Bill Det & Rates'!K33 -> 0 | U33: aaa
B34: 13 | C34: ='3. Re-Based Bill Det & Rates'!D34 -> Rate Class 13 | D34: ='3. Re-Based Bill Det & Rates'!E34 -> NA | E34: ='3. Re-Based Bill Det & Rates'!F34 -> NA | G34: ='4. Re-Based Rev From Rates'!P34 -> 0 | I34: 0 | K34: 0 | M34: ='3. Re-Based Bill Det & Rates'!J34 -> 0 | O34: ='3. Re-Based Bill Det & Rates'!K34 -> 0
B35: 14 | C35: ='3. Re-Based Bill Det & Rates'!D35 -> Rate Class 14 | D35: ='3. Re-Based Bill Det & Rates'!E35 -> NA | E35: ='3. Re-Based Bill Det & Rates'!F35 -> NA | G35: ='4. Re-Based Rev From Rates'!P35 -> 0 | I35: 0 | K35: 0 | M35: ='3. Re-Based Bill Det & Rates'!J35 -> 0 | O35: ='3. Re-Based Bill Det & Rates'!K35 -> 0
B36: 15 | C36: ='3. Re-Based Bill Det & Rates'!D36 -> Rate Class 15 | D36: ='3. Re-Based Bill Det & Rates'!E36 -> NA | E36: ='3. Re-Based Bill Det & Rates'!F36 -> NA | G36: ='4. Re-Based Rev From Rates'!P36 -> 0 | I36: 0 | K36: 0 | M36: ='3. Re-Based Bill Det & Rates'!J36 -> 0 | O36: ='3. Re-Based Bill Det & Rates'!K36 -> 0
B37: 16 | C37: ='3. Re-Based Bill Det & Rates'!D37 -> Rate Class 16 | D37: ='3. Re-Based Bill Det & Rates'!E37 -> NA | E37: ='3. Re-Based Bill Det & Rates'!F37 -> NA | G37: ='4. Re-Based Rev From Rates'!P37 -> 0 | I37: 0 | K37: 0 | M37: ='3. Re-Based Bill Det & Rates'!J37 -> 0 | O37: ='3. Re-Based Bill Det & Rates'!K37 -> 0
B38: 17 | C38: ='3. Re-Based Bill Det & Rates'!D38 -> Rate Class 17 | D38: ='3. Re-Based Bill Det & Rates'!E38 -> NA | E38: ='3. Re-Based Bill Det & Rates'!F38 -> NA | G38: ='4. Re-Based Rev From Rates'!P38 -> 0 | I38: 0 | K38: 0 | M38: ='3. Re-Based Bill Det & Rates'!J38 -> 0 | O38: ='3. Re-Based Bill Det & Rates'!K38 -> 0
B39: 18 | C39: ='3. Re-Based Bill Det & Rates'!D39 -> Rate Class 18 | D39: ='3. Re-Based Bill Det & Rates'!E39 -> NA | E39: ='3. Re-Based Bill Det & Rates'!F39 -> NA | G39: ='4. Re-Based Rev From Rates'!P39 -> 0 | I39: 0 | K39: 0 | M39: ='3. Re-Based Bill Det & Rates'!J39 -> 0 | O39: ='3. Re-Based Bill Det & Rates'!K39 -> 0
B40: 19 | C40: ='3. Re-Based Bill Det & Rates'!D40 -> Rate Class 19 | D40: ='3. Re-Based Bill Det & Rates'!E40 -> NA | E40: ='3. Re-Based Bill Det & Rates'!F40 -> NA | G40: ='4. Re-Based Rev From Rates'!P40 -> 0 | I40: 0 | K40: 0 | M40: ='3. Re-Based Bill Det & Rates'!J40 -> 0 | O40: ='3. Re-Based Bill Det & Rates'!K40 -> 0
B41: 20 | C41: ='3. Re-Based Bill Det & Rates'!D41 -> Rate Class 20 | D41: ='3. Re-Based Bill Det & Rates'!E41 -> NA | E41: ='3. Re-Based Bill Det & Rates'!F41 -> NA | G41: ='4. Re-Based Rev From Rates'!P41 -> 0 | I41: 0 | K41: 0 | M41: ='3. Re-Based Bill Det & Rates'!J41 -> 0 | O41: ='3. Re-Based Bill Det & Rates'!K41 -> 0
B42: 21 | C42: ='3. Re-Based Bill Det & Rates'!D42 -> Rate Class 21 | D42: ='3. Re-Based Bill Det & Rates'!E42 -> NA | E42: ='3. Re-Based Bill Det & Rates'!F42 -> NA | G42: ='4. Re-Based Rev From Rates'!P42 -> 0 | I42: 0 | K42: 0 | M42: ='3. Re-Based Bill Det & Rates'!J42 -> 0 | O42: ='3. Re-Based Bill Det & Rates'!K42 -> 0
B43: 22 | C43: ='3. Re-Based Bill Det & Rates'!D43 -> Rate Class 22 | D43: ='3. Re-Based Bill Det & Rates'!E43 -> NA | E43: ='3. Re-Based Bill Det & Rates'!F43 -> NA | G43: ='4. Re-Based Rev From Rates'!P43 -> 0 | I43: 0 | K43: 0 | M43: ='3. Re-Based Bill Det & Rates'!J43 -> 0 | O43: ='3. Re-Based Bill Det & Rates'!K43 -> 0
B44: 23 | C44: ='3. Re-Based Bill Det & Rates'!D44 -> Rate Class 23 | D44: ='3. Re-Based Bill Det & Rates'!E44 -> NA | E44: ='3. Re-Based Bill Det & Rates'!F44 -> NA | G44: ='4. Re-Based Rev From Rates'!P44 -> 0 | I44: 0 | K44: 0 | M44: ='3. Re-Based Bill Det & Rates'!J44 -> 0 | O44: ='3. Re-Based Bill Det & Rates'!K44 -> 0
B45: 24 | C45: ='3. Re-Based Bill Det & Rates'!D45 -> Rate Class 24 | D45: ='3. Re-Based Bill Det & Rates'!E45 -> NA | E45: ='3. Re-Based Bill Det & Rates'!F45 -> NA | G45: ='4. Re-Based Rev From Rates'!P45 -> 0 | I45: 0 | K45: 0 | M45: ='3. Re-Based Bill Det & Rates'!J45 -> 0 | O45: ='3. Re-Based Bill Det & Rates'!K45 -> 0
B46: 25 | C46: ='3. Re-Based Bill Det & Rates'!D46 -> Rate Class 25 | D46: ='3. Re-Based Bill Det & Rates'!E46 -> NA | E46: ='3. Re-Based Bill Det & Rates'!F46 -> NA | G46: ='4. Re-Based Rev From Rates'!P46 -> 0 | I46: 0 | K46: 0 | M46: ='3. Re-Based Bill Det & Rates'!J46 -> 0 | O46: ='3. Re-Based Bill Det & Rates'!K46 -> 0
G47: =SUM(G22:G46) -> 29273971.65 | I47: =SUM(I22:I46) -> 1 | K47: ='5. Z-Factor Tax Changes'!Q53 -> -55823.61546
G48: H | K48: =SUM(K22:K46)-K47 -> 0
K49: I

Sheet Sheet1 (hidden)
A1: Ontario Small Business Deduction
B2: 2008 | C2: 2009 | D2: 2010 | E2: 2011 | F2: 2012 | G2: 2013 | H2: 2014
A4: Ontario tax rate | B4: 0.14 | C4: 0.14 | D4: 0.13 | E4: 0.1175 | F4: 0.1125 | G4: 0.105 | H4: 0.1
A5: Ontario small business deduction rate | B5: 0.085 | C5: 0.085 | D5: 0.08 | E5: 0.0725 | F5: 0.0675 | G5: 0.06 | H5: 0.055
A6: Ontario small business rate | B6: =B4-B5 -> 0.055 | C6: 0.055 | D6: 0.05 | E6: 0.045 | F6: 0.045 | G6: 0.045 | H6: 0.045
A8: Ontario small business limit | B8: 500000 | C8: 500000 | D8: 500000 | E8: 500000 | F8: 500000 | G8: 500000 | H8: 500000
A10: Small business deduction | B10: =B5*B8 -> 42500 | C10: 42500 | D10: 40000 | E10: 36250 | F10: 33750 | G10: 30000 | H10: 27500

Sheet G4.2 Incr Cap RRider Opt A FV (hidden)
C2: ='1. Info'!C2 -> 0
C3: ='1. Info'!C3 -> 0
C4: ='1. Info'!C4 -> 0
C10: ='Z1.0 OEB Control Sheet'!#REF! -> 
B20: Control | C20: Rate Class | D20: Fixed Metric | E20: Vol Metric | G20: Service Charge % Revenue | H20: Distribution Volumetric Rate % Revenue kWh | I20: Distribution Volumetric Rate % Revenue kW | K20: Service Charge Revenue | L20: Distribution Volumetric Rate Revenue kWh | M20: Distribution Volumetric Rate Revenue kW | N20: Total Revenue by Rate Class | P20: Billed Customers or Connections | Q20: Billed kWh | R20: Billed kW | T20: Service Charge Rate Rider | U20: Distribution Volumetric Rate kWh Rate Rider | V20: Distribution Volumetric Rate kW Rate Rider
G21: A | H21: B | I21: C | K21: D = $N * A | L21: E = $N * B | M21: F = $N * C | N21: G = D + E + F | P21: H | Q21: I | R21: J | T21: K = D / H / 12 | U21: L = E / I | V21: M = F / J
B22: 1 | C22: ='3. Re-Based Bill Det & Rates'!D22 -> Residential | D22: ='3. Re-Based Bill Det & Rates'!E22 -> Customer | E22: ='3. Re-Based Bill Det & Rates'!F22 -> kWh | G22: =IF(ISERROR(#REF!*(#REF!/#REF!)),0,#REF!*(#REF!/#REF!)) -> 0 | H22: =IF(ISERROR(#REF!*(#REF!/#REF!)),0,#REF!*(#REF!/#REF!)) -> 0 | I22: =IF(ISERROR(#REF!*(#REF!/#REF!)),0,#REF!*(#REF!/#REF!)) -> 0 | K22: =IF(ISERROR($N$47*G22),"",$N$47*G22) ->  | L22: =IF(ISERROR($N$47*H22),"",$N$47*H22) ->  | M22: =IF(ISERROR($N$47*I22),"",$N$47*I22) ->  | N22: =SUM(K22:M22) -> 0 | P22: ='3. Re-Based Bill Det & Rates'!I22 -> 46238 | Q22: ='3. Re-Based Bill Det & Rates'!J22 -> 393848053.7 | R22: ='3. Re-Based Bill Det & Rates'!K22 -> 0 | T22: =IF(ISERROR(K22/P22/12),"",ROUND(K22/P22/12,6)) ->  | U22: =IF(ISERROR(L22/Q22),"",ROUND(L22/Q22,6)) ->  | V22: =IF(ISERROR(M22/R22),"",ROUND(M22/R22,6)) -> 
B23: 2 | C23: ='3. Re-Based Bill Det & Rates'!D23 -> General Service Less Than 50 kW | D23: ='3. Re-Based Bill Det & Rates'!E23 -> Customer | E23: ='3. Re-Based Bill Det & Rates'!F23 -> kWh | G23: =IF(ISERROR(#REF!*(#REF!/#REF!)),0,#REF!*(#REF!/#REF!)) -> 0 | H23: =IF(ISERROR(#REF!*(#REF!/#REF!)),0,#REF!*(#REF!/#REF!)) -> 0 | I23: =IF(ISERROR(#REF!*(#REF!/#REF!)),0,#REF!*(#REF!/#REF!)) -> 0 | N23: 0 | P23: ='3. Re-Based Bill Det & Rates'!I23 -> 5427.547578 | Q23: ='3. Re-Based Bill Det & Rates'!J23 -> 179687810.2 | R23: ='3. Re-Based Bill Det & Rates'!K23 -> 0 | T23: =IF(ISERROR(K23/P23/12),"",ROUND(K23/P23/12,6)) ->  | U23: =IF(ISERROR(L23/Q23),"",ROUND(L23/Q23,6)) ->  | V23: =IF(ISERROR(M23/R23),"",ROUND(M23/R23,6)) -> 
B24: 3 | C24: ='3. Re-Based Bill Det & Rates'!D24 -> General Service 50 to 4,999 kW | D24: ='3. Re-Based Bill Det & Rates'!E24 -> Customer | E24: ='3. Re-Based Bill Det & Rates'!F24 -> kW | G24: =IF(ISERROR(#REF!*(#REF!/#REF!)),0,#REF!*(#REF!/#REF!)) -> 0 | H24: =IF(ISERROR(#REF!*(#REF!/#REF!)),0,#REF!*(#REF!/#REF!)) -> 0 | I24: =IF(ISERROR(#REF!*(#REF!/#REF!)),0,#REF!*(#REF!/#REF!)) -> 0 | N24: 0 | P24: ='3. Re-Based Bill Det & Rates'!I24 -> 666.6431465 | Q24: ='3. Re-Based Bill Det & Rates'!J24 -> 705732689 | R24: ='3. Re-Based Bill Det & Rates'!K24 -> 1581206.519
B25: 4 | C25: ='3. Re-Based Bill Det & Rates'!D25 -> Large Use | D25: ='3. Re-Based Bill Det & Rates'!E25 -> Customer | E25: ='3. Re-Based Bill Det & Rates'!F25 -> kW | G25: =IF(ISERROR(#REF!*(#REF!/#REF!)),0,#REF!*(#REF!/#REF!)) -> 0 | H25: =IF(ISERROR(#REF!*(#REF!/#REF!)),0,#REF!*(#REF!/#REF!)) -> 0 | I25: =IF(ISERROR(#REF!*(#REF!/#REF!)),0,#REF!*(#REF!/#REF!)) -> 0 | N25: 0 | P25: ='3. Re-Based Bill Det & Rates'!I25 -> 1 | Q25: ='3. Re-Based Bill Det & Rates'!J25 -> 79638262.48 | R25: ='3. Re-Based Bill Det & Rates'!K25 -> 153851.8077
B26: 5 | C26: ='3. Re-Based Bill Det & Rates'!D26 -> Unmetered Scattered Load | D26: ='3. Re-Based Bill Det & Rates'!E26 -> Connection | E26: ='3. Re-Based Bill Det & Rates'!F26 -> kWh | G26: =IF(ISERROR(#REF!*(#REF!/#REF!)),0,#REF!*(#REF!/#REF!)) -> 0 | H26: =IF(ISERROR(#REF!*(#REF!/#REF!)),0,#REF!*(#REF!/#REF!)) -> 0 | I26: =IF(ISERROR(#REF!*(#REF!/#REF!)),0,#REF!*(#REF!/#REF!)) -> 0 | N26: 0 | P26: ='3. Re-Based Bill Det & Rates'!I26 -> 547.0223936 | Q26: ='3. Re-Based Bill Det & Rates'!J26 -> 1648665.919 | R26: ='3. Re-Based Bill Det & Rates'!K26 -> 0
B27: 6 | C27: ='3. Re-Based Bill Det & Rates'!D27 -> Street Lighting | D27: ='3. Re-Based Bill Det & Rates'!E27 -> Connection | E27: ='3. Re-Based Bill Det & Rates'!F27 -> kW | G27: =IF(ISERROR(#REF!*(#REF!/#REF!)),0,#REF!*(#REF!/#REF!)) -> 0 | H27: =IF(ISERROR(#REF!*(#REF!/#REF!)),0,#REF!*(#REF!/#REF!)) -> 0 | I27: =IF(ISERROR(#REF!*(#REF!/#REF!)),0,#REF!*(#REF!/#REF!)) -> 0 | N27: 0 | P27: ='3. Re-Based Bill Det & Rates'!I27 -> 13259.20557 | Q27: ='3. Re-Based Bill Det & Rates'!J27 -> 7792005.668 | R27: ='3. Re-Based Bill Det & Rates'!K27 -> 21835.28338
B28: 7 | C28: ='3. Re-Based Bill Det & Rates'!D28 -> Embedded Distributor | D28: ='3. Re-Based Bill Det & Rates'!E28 -> Connection | E28: ='3. Re-Based Bill Det & Rates'!F28 -> kW | G28: =IF(ISERROR(#REF!*(#REF!/#REF!)),0,#REF!*(#REF!/#REF!)) -> 0 | H28: =IF(ISERROR(#REF!*(#REF!/#REF!)),0,#REF!*(#REF!/#REF!)) -> 0 | I28: =IF(ISERROR(#REF!*(#REF!/#REF!)),0,#REF!*(#REF!/#REF!)) -> 0 | N28: 0 | P28: ='3. Re-Based Bill Det & Rates'!I28 -> 1 | Q28: ='3. Re-Based Bill Det & Rates'!J28 -> 28618000 | R28: ='3. Re-Based Bill Det & Rates'!K28 -> 71600
B29: 8 | C29: ='3. Re-Based Bill Det & Rates'!D29 -> Rate Class 8 | D29: ='3. Re-Based Bill Det & Rates'!E29 -> NA | E29: ='3. Re-Based Bill Det & Rates'!F29 -> NA | G29: =IF(ISERROR(#REF!*(#REF!/#REF!)),0,#REF!*(#REF!/#REF!)) -> 0 | H29: =IF(ISERROR(#REF!*(#REF!/#REF!)),0,#REF!*(#REF!/#REF!)) -> 0 | I29: =IF(ISERROR(#REF!*(#REF!/#REF!)),0,#REF!*(#REF!/#REF!)) -> 0 | N29: 0 | P29: ='3. Re-Based Bill Det & Rates'!I29 -> 0 | Q29: ='3. Re-Based Bill Det & Rates'!J29 -> 0 | R29: ='3. Re-Based Bill Det & Rates'!K29 -> 0
B30: 9 | C30: ='3. Re-Based Bill Det & Rates'!D30 -> Rate Class 9 | D30: ='3. Re-Based Bill Det & Rates'!E30 -> NA | E30: ='3. Re-Based Bill Det & Rates'!F30 -> NA | G30: =IF(ISERROR(#REF!*(#REF!/#REF!)),0,#REF!*(#REF!/#REF!)) -> 0 | H30: =IF(ISERROR(#REF!*(#REF!/#REF!)),0,#REF!*(#REF!/#REF!)) -> 0 | I30: =IF(ISERROR(#REF!*(#REF!/#REF!)),0,#REF!*(#REF!/#REF!)) -> 0 | N30: 0 | P30: ='3. Re-Based Bill Det & Rates'!I30 -> 0 | Q30: ='3. Re-Based Bill Det & Rates'!J30 -> 0 | R30: ='3. Re-Based Bill Det & Rates'!K30 -> 0
B31: 10 | C31: ='3. Re-Based Bill Det & Rates'!D31 -> Rate Class 10 | D31: ='3. Re-Based Bill Det & Rates'!E31 -> NA | E31: ='3. Re-Based Bill Det & Rates'!F31 -> NA | G31: =IF(ISERROR(#REF!*(#REF!/#REF!)),0,#REF!*(#REF!/#REF!)) -> 0 | H31: =IF(ISERROR(#REF!*(#REF!/#REF!)),0,#REF!*(#REF!/#REF!)) -> 0 | I31: =IF(ISERROR(#REF!*(#REF!/#REF!)),0,#REF!*(#REF!/#REF!)) -> 0 | N31: 0 | P31: ='3. Re-Based Bill Det & Rates'!I31 -> 0 | Q31: ='3. Re-Based Bill Det & Rates'!J31 -> 0 | R31: ='3. Re-Based Bill Det & Rates'!K31 -> 0
B32: 11 | C32: ='3. Re-Based Bill Det & Rates'!D32 -> Rate Class 11 | D32: ='3. Re-Based Bill Det & Rates'!E32 -> NA | E32: ='3. Re-Based Bill Det & Rates'!F32 -> NA | G32: =IF(ISERROR(#REF!*(#REF!/#REF!)),0,#REF!*(#REF!/#REF!)) -> 0 | H32: =IF(ISERROR(#REF!*(#REF!/#REF!)),0,#REF!*(#REF!/#REF!)) -> 0 | I32: =IF(ISERROR(#REF!*(#REF!/#REF!)),0,#REF!*(#REF!/#REF!)) -> 0 | N32: 0 | P32: ='3. Re-Based Bill Det & Rates'!I32 -> 0 | Q32: ='3. Re-Based Bill Det & Rates'!J32 -> 0 | R32: ='3. Re-Based Bill Det & Rates'!K32 -> 0
B33: 12 | C33: ='3. Re-Based Bill Det & Rates'!D33 -> Rate Class 12 | D33: ='3. Re-Based Bill Det & Rates'!E33 -> NA | E33: ='3. Re-Based Bill Det & Rates'!F33 -> NA | G33: =IF(ISERROR(#REF!*(#REF!/#REF!)),0,#REF!*(#REF!/#REF!)) -> 0 | H33: =IF(ISERROR(#REF!*(#REF!/#REF!)),0,#REF!*(#REF!/#REF!)) -> 0 | I33: =IF(ISERROR(#REF!*(#REF!/#REF!)),0,#REF!*(#REF!/#REF!)) -> 0 | N33: 0 | P33: ='3. Re-Based Bill Det & Rates'!I33 -> 0 | Q33: ='3. Re-Based Bill Det & Rates'!J33 -> 0 | R33: ='3. Re-Based Bill Det & Rates'!K33 -> 0
B34: 13 | C34: ='3. Re-Based Bill Det & Rates'!D34 -> Rate Class 13 | D34: ='3. Re-Based Bill Det & Rates'!E34 -> NA | E34: ='3. Re-Based Bill Det & Rates'!F34 -> NA | G34: =IF(ISERROR(#REF!*(#REF!/#REF!)),0,#REF!*(#REF!/#REF!)) -> 0 | H34: =IF(ISERROR(#REF!*(#REF!/#REF!)),0,#REF!*(#REF!/#REF!)) -> 0 | I34: =IF(ISERROR(#REF!*(#REF!/#REF!)),0,#REF!*(#REF!/#REF!)) -> 0 | N34: 0 | P34: ='3. Re-Based Bill Det & Rates'!I34 -> 0 | Q34: ='3. Re-Based Bill Det & Rates'!J34 -> 0 | R34: ='3. Re-Based Bill Det & Rates'!K34 -> 0
B35: 14 | C35: ='3. Re-Based Bill Det & Rates'!D35 -> Rate Class 14 | D35: ='3. Re-Based Bill Det & Rates'!E35 -> NA | E35: ='3. Re-Based Bill Det & Rates'!F35 -> NA | G35: =IF(ISERROR(#REF!*(#REF!/#REF!)),0,#REF!*(#REF!/#REF!)) -> 0 | H35: =IF(ISERROR(#REF!*(#REF!/#REF!)),0,#REF!*(#REF!/#REF!)) -> 0 | I35: =IF(ISERROR(#REF!*(#REF!/#REF!)),0,#REF!*(#REF!/#REF!)) -> 0 | N35: 0 | P35: ='3. Re-Based Bill Det & Rates'!I35 -> 0 | Q35: ='3. Re-Based Bill Det & Rates'!J35 -> 0 | R35: ='3. Re-Based Bill Det & Rates'!K35 -> 0
B36: 15 | C36: ='3. Re-Based Bill Det & Rates'!D36 -> Rate Class 15 | D36: ='3. Re-Based Bill Det & Rates'!E36 -> NA | E36: ='3. Re-Based Bill Det & Rates'!F36 -> NA | G36: =IF(ISERROR(#REF!*(#REF!/#REF!)),0,#REF!*(#REF!/#REF!)) -> 0 | H36: =IF(ISERROR(#REF!*(#REF!/#REF!)),0,#REF!*(#REF!/#REF!)) -> 0 | I36: =IF(ISERROR(#REF!*(#REF!/#REF!)),0,#REF!*(#REF!/#REF!)) -> 0 | N36: 0 | P36: ='3. Re-Based Bill Det & Rates'!I36 -> 0 | Q36: ='3. Re-Based Bill Det & Rates'!J36 -> 0 | R36: ='3. Re-Based Bill Det & Rates'!K36 -> 0
B37: 16 | C37: ='3. Re-Based Bill Det & Rates'!D37 -> Rate Class 16 | D37: ='3. Re-Based Bill Det & Rates'!E37 -> NA | E37: ='3. Re-Based Bill Det & Rates'!F37 -> NA | G37: =IF(ISERROR(#REF!*(#REF!/#REF!)),0,#REF!*(#REF!/#REF!)) -> 0 | H37: =IF(ISERROR(#REF!*(#REF!/#REF!)),0,#REF!*(#REF!/#REF!)) -> 0 | I37: =IF(ISERROR(#REF!*(#REF!/#REF!)),0,#REF!*(#REF!/#REF!)) -> 0 | N37: 0 | P37: ='3. Re-Based Bill Det & Rates'!I37 -> 0 | Q37: ='3. Re-Based Bill Det & Rates'!J37 -> 0 | R37: ='3. Re-Based Bill Det & Rates'!K37 -> 0
B38: 17 | C38: ='3. Re-Based Bill Det & Rates'!D38 -> Rate Class 17 | D38: ='3. Re-Based Bill Det & Rates'!E38 -> NA | E38: ='3. Re-Based Bill Det & Rates'!F38 -> NA | G38: =IF(ISERROR(#REF!*(#REF!/#REF!)),0,#REF!*(#REF!/#REF!)) -> 0 | H38: =IF(ISERROR(#REF!*(#REF!/#REF!)),0,#REF!*(#REF!/#REF!)) -> 0 | I38: =IF(ISERROR(#REF!*(#REF!/#REF!)),0,#REF!*(#REF!/#REF!)) -> 0 | N38: 0 | P38: ='3. Re-Based Bill Det & Rates'!I38 -> 0 | Q38: ='3. Re-Based Bill Det & Rates'!J38 -> 0 | R38: ='3. Re-Based Bill Det & Rates'!K38 -> 0
B39: 18 | C39: ='3. Re-Based Bill Det & Rates'!D39 -> Rate Class 18 | D39: ='3. Re-Based Bill Det & Rates'!E39 -> NA | E39: ='3. Re-Based Bill Det & Rates'!F39 -> NA | G39: =IF(ISERROR(#REF!*(#REF!/#REF!)),0,#REF!*(#REF!/#REF!)) -> 0 | H39: =IF(ISERROR(#REF!*(#REF!/#REF!)),0,#REF!*(#REF!/#REF!)) -> 0 | I39: =IF(ISERROR(#REF!*(#REF!/#REF!)),0,#REF!*(#REF!/#REF!)) -> 0 | N39: 0 | P39: ='3. Re-Based Bill Det & Rates'!I39 -> 0 | Q39: ='3. Re-Based Bill Det & Rates'!J39 -> 0 | R39: ='3. Re-Based Bill Det & Rates'!K39 -> 0
B40: 19 | C40: ='3. Re-Based Bill Det & Rates'!D40 -> Rate Class 19 | D40: ='3. Re-Based Bill Det & Rates'!E40 -> NA | E40: ='3. Re-Based Bill Det & Rates'!F40 -> NA | G40: =IF(ISERROR(#REF!*(#REF!/#REF!)),0,#REF!*(#REF!/#REF!)) -> 0 | H40: =IF(ISERROR(#REF!*(#REF!/#REF!)),0,#REF!*(#REF!/#REF!)) -> 0 | I40: =IF(ISERROR(#REF!*(#REF!/#REF!)),0,#REF!*(#REF!/#REF!)) -> 0 | N40: 0 | P40: ='3. Re-Based Bill Det & Rates'!I40 -> 0 | Q40: ='3. Re-Based Bill Det & Rates'!J40 -> 0 | R40: ='3. Re-Based Bill Det & Rates'!K40 -> 0
B41: 20 | C41: ='3. Re-Based Bill Det & Rates'!D41 -> Rate Class 20 | D41: ='3. Re-Based Bill Det & Rates'!E41 -> NA | E41: ='3. Re-Based Bill Det & Rates'!F41 -> NA | G41: =IF(ISERROR(#REF!*(#REF!/#REF!)),0,#REF!*(#REF!/#REF!)) -> 0 | H41: =IF(ISERROR(#REF!*(#REF!/#REF!)),0,#REF!*(#REF!/#REF!)) -> 0 | I41: =IF(ISERROR(#REF!*(#REF!/#REF!)),0,#REF!*(#REF!/#REF!)) -> 0 | N41: 0 | P41: ='3. Re-Based Bill Det & Rates'!I41 -> 0 | Q41: ='3. Re-Based Bill Det & Rates'!J41 -> 0 | R41: ='3. Re-Based Bill Det & Rates'!K41 -> 0
B42: 21 | C42: ='3. Re-Based Bill Det & Rates'!D42 -> Rate Class 21 | D42: ='3. Re-Based Bill Det & Rates'!E42 -> NA | E42: ='3. Re-Based Bill Det & Rates'!F42 -> NA | G42: =IF(ISERROR(#REF!*(#REF!/#REF!)),0,#REF!*(#REF!/#REF!)) -> 0 | H42: =IF(ISERROR(#REF!*(#REF!/#REF!)),0,#REF!*(#REF!/#REF!)) -> 0 | I42: =IF(ISERROR(#REF!*(#REF!/#REF!)),0,#REF!*(#REF!/#REF!)) -> 0 | N42: 0 | P42: ='3. Re-Based Bill Det & Rates'!I42 -> 0 | Q42: ='3. Re-Based Bill Det & Rates'!J42 -> 0 | R42: ='3. Re-Based Bill Det & Rates'!K42 -> 0
B43: 22 | C43: ='3. Re-Based Bill Det & Rates'!D43 -> Rate Class 22 | D43: ='3. Re-Based Bill Det & Rates'!E43 -> NA | E43: ='3. Re-Based Bill Det & Rates'!F43 -> NA | G43: =IF(ISERROR(#REF!*(#REF!/#REF!)),0,#REF!*(#REF!/#REF!)) -> 0 | H43: =IF(ISERROR(#REF!*(#REF!/#REF!)),0,#REF!*(#REF!/#REF!)) -> 0 | I43: =IF(ISERROR(#REF!*(#REF!/#REF!)),0,#REF!*(#REF!/#REF!)) -> 0 | N43: 0 | P43: ='3. Re-Based Bill Det & Rates'!I43 -> 0 | Q43: ='3. Re-Based Bill Det & Rates'!J43 -> 0 | R43: ='3. Re-Based Bill Det & Rates'!K43 -> 0
B44: 23 | C44: ='3. Re-Based Bill Det & Rates'!D44 -> Rate Class 23 | D44: ='3. Re-Based Bill Det & Rates'!E44 -> NA | E44: ='3. Re-Based Bill Det & Rates'!F44 -> NA | G44: =IF(ISERROR(#REF!*(#REF!/#REF!)),0,#REF!*(#REF!/#REF!)) -> 0 | H44: =IF(ISERROR(#REF!*(#REF!/#REF!)),0,#REF!*(#REF!/#REF!)) -> 0 | I44: =IF(ISERROR(#REF!*(#REF!/#REF!)),0,#REF!*(#REF!/#REF!)) -> 0 | N44: 0 | P44: ='3. Re-Based Bill Det & Rates'!I44 -> 0 | Q44: ='3. Re-Based Bill Det & Rates'!J44 -> 0 | R44: ='3. Re-Based Bill Det & Rates'!K44 -> 0
B45: 24 | C45: ='3. Re-Based Bill Det & Rates'!D45 -> Rate Class 24 | D45: ='3. Re-Based Bill Det & Rates'!E45 -> NA | E45: ='3. Re-Based Bill Det & Rates'!F45 -> NA | G45: =IF(ISERROR(#REF!*(#REF!/#REF!)),0,#REF!*(#REF!/#REF!)) -> 0 | H45: =IF(ISERROR(#REF!*(#REF!/#REF!)),0,#REF!*(#REF!/#REF!)) -> 0 | I45: =IF(ISERROR(#REF!*(#REF!/#REF!)),0,#REF!*(#REF!/#REF!)) -> 0 | N45: 0 | P45: ='3. Re-Based Bill Det & Rates'!I45 -> 0 | Q45: ='3. Re-Based Bill Det & Rates'!J45 -> 0 | R45: ='3. Re-Based Bill Det & Rates'!K45 -> 0
B46: 25 | C46: ='3. Re-Based Bill Det & Rates'!D46 -> Rate Class 25 | D46: ='3. Re-Based Bill Det & Rates'!E46 -> NA | E46: ='3. Re-Based Bill Det & Rates'!F46 -> NA | G46: =IF(ISERROR(#REF!*(#REF!/#REF!)),0,#REF!*(#REF!/#REF!)) -> 0 | H46: =IF(ISERROR(#REF!*(#REF!/#REF!)),0,#REF!*(#REF!/#REF!)) -> 0 | I46: =IF(ISERROR(#REF!*(#REF!/#REF!)),0,#REF!*(#REF!/#REF!)) -> 0 | N46: 0 | P46: ='3. Re-Based Bill Det & Rates'!I46 -> 0 | Q46: ='3. Re-Based Bill Det & Rates'!J46 -> 0 | R46: ='3. Re-Based Bill Det & Rates'!K46 -> 0
G47: =SUM(G22:G46) -> 0 | H47: =SUM(H22:H46) -> 0 | I47: =SUM(I22:I46) -> 0 | K47: =SUM(K22:K46) -> 0 | L47: =SUM(L22:L46) -> 0 | M47: =SUM(M22:M46) -> 0 | N47: =#REF! -> 
N48: =SUM(N22:N46)-N47 -> 
N49: N | T49: Enter the above value onto Sheet "J1.2 Incremental Cap Fund Adder" of the 2010 OEB IRM3 Rate Generator.

Sheet Z1.0 OEB Control Sheet (hidden)
A1: Sheet Number | B1: Assignment | C1: Sheet Title | D1: Core Sheet Name | E1: Chrs | F1: OEB Audit | G1: Purpose of Sheet
A2: Sheet1 | B2: A1.1 | C2: LDC Information | D2: A1.1 LDC Information | E2: =LEN(D2) -> 20 | F2: No | G2: Enter LDC Data
A3: Sheet2 | B3: A2.1 | C3: Table of Contents | D3: A2.1 Table of Contents | E3: 22 | F3: No | G3: Table of Contents
A4: Sheet5 | B4: B1.1 | C4: Rate Class and Re-Based Billing Determinants & Rates | D4: B1.1 Re-Based Bill Det & Rates | E4: 30 | F4: No | G4: Set Up Rate Classes and enter Re-Based Billing Determinants and Tariff Rates
A5: Sheet7 | B5: B1.3 | C5: Calculated Re-Based Revenue From Rates | D5: B1.3 Re-Based Rev From Rates | E5: 28 | F5: No | G5: Calculated Re-Based Revenue From Rates
A6: Sheet23 | B6: F1.1 | C6: Z-Factor Tax Changes | D6: F1.1 Z-Factor Tax Changes | E6: 25 | F6: No | G6: Sharing formula for Tax changes - this is very preliminary
A7: Sheet24 | B7: F1.2 | C7: Calculate Tax Change Rate Rider Option A Fixed and Volumetric | D7: F1.2 CalcTaxChg RRider OptA FV | E7: 30 | F7: No | G7: Option A - Calculation of Tax Sharing Rate Rider - Fixed Variable Split
A8: Sheet25 | B8: F1.3 | C8: Calculate Tax Change Rate Rider Volumetric | D8: F1.3 Calc Tax Chg RRider Var | E8: 28 | F8: No | G8: Option B - Calculation of Tax Sharing Rate Rider - Volumetric Allocation
A9: Sheet32 | B9: Z1.0 | C9: OEB Control Sheet | D9: Z1.0 OEB Control Sheet | E9: 22 | F9: N/A | G9: Not Shown
